Cogmind - Beta 13 @@@ ROGUE MODE // 2024.04.06 @ 18:44:54 Player: DURANDAL Result: Destroyed self with Grenade Launcher Performance ------------- Evolutions (0) 0 Regions Visited (1) 200 Robots Destroyed (17) 85 Value Destroyed (326) 326 Prototype IDs (0) 0 Alien Tech Used (0) 0 Bonus (0) 0 TOTAL SCORE: 611 Bonus ------- None Cogmind --------- Core Integrity 0/250 Matter 62/300 Energy 100/100 System Corruption 0% Temperature Cool (0) Movement Walking (680) Ox8 Location -10/Materials Parts ------- > --- POWER (1) -------- (None) > --- PROPULSION (2) --- Aluminum Leg > --- UTILITY (2) ------ Huge Storage Unit Weapon Shielding > --- WEAPON (2) ------- Grenade Launcher > --- INVENTORY (25) --- Ion Engine Ion Engine Small Storage Unit Light Assault Rifle Rocket Launcher Peak State ------------ > --- POWER ------------ Ion Engine > --- PROPULSION ------- Light Treads Light Treads > --- UTILITY ---------- Small Storage Unit Weapon Shielding > --- WEAPON ----------- Assault Rifle Light Assault Rifle > --- INVENTORY -------- Grenade Launcher [Rating: 7] Favorites ----------- Power Ion Engine Engine Ion Engine Propulsion Light Treads Treads Light Treads Leg Aluminum Leg Utility Huge Storage Unit Storage Huge Storage Unit Protection Weapon Shielding Weapon Assault Rifle Ballistic Gun Assault Rifle Launcher Rocket Launcher Build | -11 -10 ------- Run | Yrd Mat Slots Evolved . | . . Power . | . . Propulsion . | . . Utility . | . . Weapon . | . . Parts Attached 13 | 6 7 Power 1 | 1 . Engine 1 | 1 . Core . | . . Reactor . | . . Propulsion 4 | 2 2 Treads 2 | 2 . Leg 2 | . 2 Wheel . | . . Hover . | . . Flight . | . . Utility 4 | 1 3 Device . | . . Storage 2 | 1 1 Processor . | . . Hackware . | . . Protection 2 | . 2 Artifact . | . . Weapon 4 | 2 2 Energy Gun . | . . Energy Cannon . | . . Ballistic Gun 2 | 2 . Ballistic Cannon . | . . Launcher 2 | . 2 Special Weapon . | . . Impact Weapon . | . . Slashing Weapon . | . . Piercing Weapon . | . . Special Melee Weapon . | . . Unidentified Prototypes . | . . Parts Lost 8 | . 8 Power 1 | . 1 Propulsion 3 | . 3 Utility 1 | . 1 Weapon 3 | . 3 Highest Loss Streak 6 | . 6 To Critical Strikes . | . . Average Slot Usage (%) 82 | . 82 Engine 9 | . 9 Treads 18 | . 18 Leg 4 | . 4 Storage 14 | . 14 Protection 10 | . 10 Ballistic Gun 19 | . 19 Launcher 4 | . 4 Naked Turns . | . . Heaviest Build 89 | 13 89 Greatest Support 40 | 40 40 Greatest Overweight (x) 27 | . 27 Average Overweight (x) 1 | . 2 Largest Inventory Capacity 25 | 8 25 Average Capacity 21 | 7 22 Most Carried 7 | 5 7 Average Carried 3 | . 3 Final Capacity 25 | 8 25 Final Carried 5 | . 5 Class Distribution -------------------- 100% | Mutant Dominant Class ---------------- Mutant | -10/Materials Resources | -11 -10 ----------- Run | Yrd Mat Matter Collected 268 | 93 175 Remotely . | . . Salvage Created 427 | . 427 Parts 32 | . 32 Haulers Intercepted 1 | . 1 Recyclers Shooed . | . . Parts Field Recycled . | . . Retrieved Matter . | . . Parts Self-Destructed . | . . Prevented . | . . Kills | -11 -10 ------- Run | Yrd Mat Combat Hostiles Destroyed 10 | . 10 Guns 3 | . 3 AOE 7 | . 7 Classes Destroyed 7 | . 7 Worker 3 | . 3 Builder 1 | . 1 Hauler 1 | . 1 Recycler 1 | . 1 Watcher 1 | . 1 Swarmer 3 | . 3 Grunt 7 | . 7 Best Kill Streak 6 | . 6 Combat Bots Only 5 | . 5 Max Kills in Single Turn 3 | . 3 Gunslinging . | . . Exploded 2 | . 2 Melee . | . . Uniques/NPCs Destroyed . | . . Combat | -11 -10 -------- Run | Yrd Mat Hostile Shots Fired 99 | . 99 Missed 21 | . 21 Damage Taken 1092 | . 1092 Core 251 | . 251 Absorbed by Shields . | . . Redirected to Shielding 56 | . 56 Core Remaining (%) 100 | 100 . Volleys Fired 36 | . 36 Largest 2 | . 2 Hottest 40 | . 40 Shots Fired 52 | . 52 Gun 39 | . 39 Cannon . | . . Launcher 13 | . 13 Special . | . . Kinetic 39 | . 39 Thermal . | . . Explosive 13 | . 13 Electromagnetic . | . . Robot Hit Streak 7 | . 7 Robot Miss Streak 3 | . 3 Penetration Max . | . . Secondary Targets 1 | . 1 Max Gunslinging Chain 1 | . 1 Shots Hit Robots 32 | . 32 Core Hits 26 | . 26 Critical Kills . | . . Critical Parts Destroyed . | . . Critical Strikes . | . . Melee Attacks . | . . Impact . | . . Slashing . | . . Piercing . | . . Sneak Attacks . | . . Combat Hostiles . | . . Follow-up Attacks . | . . Damage Inflicted 968 | . 968 Guns 310 | . 310 Cannons . | . . Explosions 656 | . 656 Melee . | . . Ramming 2 | . 2 Kinetic 310 | . 310 Thermal . | . . Explosive 656 | . 656 Electromagnetic . | . . Impact . | . . Slashing . | . . Piercing . | . . Highest Corruption . | . . Average Corruption . | . . Corruption Purged . | . . Corruption Blocked . | . . Overload Shots . | . . Overflow Damage . | . . Projectiles . | . . Explosions . | . . Melee . | . . Knockbacks . | . . Impact . | . . Kinetic . | . . Secondary . | . . Self-Inflicted Damage 114 | . 114 Shots 4 | . 4 Rammed . | . . Targets Rammed 1 | . 1 Kicked 1 | . 1 Crushed . | . . Highest Temperature 110 | . 110 Average Temperature 33 | . 33 Received Heat Transfer 543 | . 543 Siege Activations . | . . Robots Corrupted . | . . Combat Hostiles . | . . Parts Fried . | . . Impact Corruptions . | . . Robots Melted . | . . Combat Hostiles . | . . Parts Melted . | . . Heat Transferred . | . . Parts Sabotaged . | . . Parts Stolen . | . . Parts Stripped . | . . Power Chain Reactions . | . . Alert | -11 -10 ------- Run | Yrd Mat Peak Influence 246 | . 246 Initial . | . . Average 52 | . 55 Maximum Alert Level 1 | . 1 Low Security (%) 90 | 100 90 Level 1 9 | . 9 Level 2 . | . . Level 3 . | . . Level 4 . | . . Level 5 . | . . High Security . | . . Max Security . | . . Squads Dispatched 1 | . 1 Investigation . | . . Extermination . | . . Reinforcement 1 | . 1 Assault . | . . Garrison . | . . Intercept . | . . Searches Triggered . | . . Construction Impeded . | . . Haulers Reinforced . | . . Active Scanning Responses . | . . Cargo Convoy Interrupts . | . . Stealth | -11 -10 --------- Run | Yrd Mat Distress Signals . | . . Communications Jammed . | . . Distress Signals . | . . Times Spotted 14 | . 14 Peak Tracking Total 4 | . 4 Tactical Retreats . | . . Traps | -11 -10 ------- Run | Yrd Mat Traps Triggered . | . . Indirectly . | . . Trap Hack Attempts . | . . Triggered . | . . Disarmed . | . . Reprogrammed . | . . Reused . | . . Traps Extracted . | . . Installed . | . . Triggered . | . . Machines | -11 -10 ---------- Run | Yrd Mat Machines Disabled . | . . Max in Single Turn . | . . Machines Repaired . | . . Machines Dismantled . | . . Machines Sabotaged . | . . Overloaded Fab Kills . | . . Hacking | -11 -10 --------- Run | Yrd Mat Machines Accessed 1 | . 1 Terminals 1 | . 1 Fabricators . | . . Repair Stations . | . . Recycling Units . | . . Scanalyzers . | . . Garrison Access . | . . Total Hacks 3 | . 3 Successful . | . . Failed 3 | . 3 Catastrophic . | . . Database Lockouts . | . . Manual . | . . Terminals 3 | . 3 Fabricators . | . . Repair Stations . | . . Recycling Units . | . . Scanalyzers . | . . Garrison Access . | . . Terminal Hacks . | . . Fabricator Hacks . | . . Repair Station Hacks . | . . Recycling Unit Hacks . | . . Scanalyzer . | . . Garrison Access Hacks . | . . Unauthorized Hacks . | . . Terminals . | . . Fabricators . | . . Repair Stations . | . . Recycling Units . | . . Scanalyzers . | . . Garrison Access . | . . Data Cores Recovered . | . . Used . | . . Hacking Detections 1 | . 1 Full Trace Events . | . . Feedback Events . | . . Feedback Blocked . | . . Robot Schematics Acquired . | . . Robots Built . | . . Authchips . | . . Time . | . . Total Robot Build Rating . | . . Part Schematics Acquired . | . . Parts Built . | . . Authchips . | . . Time . | . . Total Part Build Rating . | . . Parts Repaired . | . . Time . | . . Parts Recycled . | . . Recycled Matter . | . . Retrieved Matter . | . . Retrieved Components . | . . Parts Scanalyzed . | . . Part Schematics Acquired . | . . Parts Damaged . | . . Bothacking | -11 -10 ------------ Run | Yrd Mat Used RIF Installer . | . . Robots Hacked . | . . Non-combat . | . . Combat . | . . Robot Hacks Applied . | . . Relay Couplers Released . | . . Fabnet Peak Effective % . | . . Robots Rewired . | . . Allies Hacked . | . . Hacks Repelled . | . . Allies | -11 -10 -------- Run | Yrd Mat Total Allies . | . . Largest Group . | . . Highest-Rated Group . | . . Highest-Rated Ally . | . . Total Orders . | . . Ally Attacks . | . . Total Damage . | . . Kills . | . . Allies Corrupted . | . . Allies Melted . | . . Intel | -11 -10 ------- Run | Yrd Mat Robot Analysis Total . | . . Derelict Logs Recovered . | . . Drone Launches . | . . Drone Recoveries . | . . Exploration | -11 -10 ------------- Run | Yrd Mat Turns Passed 802 | 48 754 Spaces Moved 239 | 30 209 Core 14 | 10 4 Treads 198 | 20 178 Legs 27 | . 27 Wheels . | . . Hover . | . . Flight . | . . Fastest Speed 50 | 50 160 Average Speed 286 | 123 310 Slowest Speed 1400 | 160 1400 Overloaded Moves . | . . Propulsion Burnouts . | . . Robots Hopped . | . . Cave-ins Triggered . | . . Exploration Rate (%) 25 | 3 48 Regions Visited 1 Branch Regions . Pre-discovered Areas . | . . Known Exits Taken . | . . Unknown Exits Taken 1 | 1 . Scrap Searched . | . . Spaces Dug . | . . Terrain Destroyed 75 | . 75 Melee . | . . Projectile . | . . AOE 75 | . 75 Terrain Rammed . | . . Walls Destroyed . | . . Machines Disabled . | . . Actions | -11 -10 --------- Run | Yrd Mat Total 305 | 41 264 Wait . | . . Move 238 | 29 209 Hop . | . . Pick Up 17 | 6 11 Fast Attach . | . . Attach 12 | 6 6 Detach . | . . Swap 1 | . 1 Drop . | . . Fire 36 | . 36 Melee . | . . Ram . | . . Kick 1 | . 1 Crush . | . . Escape Stasis . | . . Rewire . | . . Trap . | . . Miscellaneous . | . . Route ------- -11/Scrapyard -10/Materials (discovered 1 exit: [*Mat]) History --------- Turn | Location | Event 10 | -11/Scrapyard | Discovered new exit (range 15) 49 | -11/Scrapyard | Entered Materials 302 | -10/Materials | Build established: Mutant 355 | -10/Materials | Discovered new exit (range 16) 554 | -10/Materials | Core integrity fell below 50% 580 | -10/Materials | Core integrity fell below 20% 608 | -10/Materials | Lost 6 parts (1p2n1u2w) 803 | -10/Materials | Destroyed self with Grenade Launcher Last Messages --------------- 00763_ U-05 Engineer builds a Wall. 00764_ The unstable cave ceiling collapses. 00766_ U-05 Engineer lays Concrete. 00769_ U-05 Engineer builds a Wall. 00771_ The unstable cave ceiling collapses. 00773_ U-05 Engineer lays Concrete. 00777_ R-06 Scavenger collects Lgt. Treads. 00778_ U-05 Engineer lays Concrete. 00781_ R-06 Scavenger collects Welding Torch. 00782_ U-05 Engineer lays Concrete. 00792_ U-05 Engineer builds a Wall. 00796_ K-01 Serf collects debris. 00800_ U-05 Engineer lays Concrete. 00800_ K-01 Serf collects debris. 00802_ U-05 Engineer lays Concrete. 00802_ Acquired Lgt. Assault Rifle. 00803_ U-05 Engineer lays Concrete. 00803_ K-01 Serf destroyed. 00803_ W-16 Scout destroyed. 00803_ U-05 Engineer destroyed. Map ----- +----------------------------------------------------+ | | | | | | | | | | | | | | | | | | | | | | | | | | | | | | | | | | | | | ???????????????????##############?????????????? | | ???????????????????# #?????????????? | | ???????????????????# #?????????????? | | ???????????????????# ???????????????? | | ???????????????????# ????????????????? | | ???????????????????# ?????????????????? | | ????????????????????# # ###????????????????? | | ????????????????????# @ #????????????????? | | ????????????????#####* !% ##????????????????? | | ????????????????+ !%!= * ##????????????????? | | ????????????????#### = %* ##????????????????? | | ???????????????????## w #????????????????? | | ????????????????????# # #???" #??????????? | | ????????????????????### # ##??"" #??????????? | | ??????????????????????### #??"" #??????????? | | ???????????????????????## #? #??????????? | | ???????????????????????## #?""" #??????????? | | ???????????????????????# # """ #??????????? | | ???????????????????????# # """ #??????????? | | ???????????????????????+ + #??????????? | | ???????????????????????# # ! #??????????? | | ???????????????????????# # #??????????? | | ???????????????????????## ##?"T" #??????????? | | ???????????????????????## | ########??????????? | | ??????????????????????## | # ** #???????????? | | ??????????????????????# ||| # *! #???????????? | | ??????????????????????# #! # #???????????? | | ?????????????????????## # * # #???????????? | | ????????????????????## ## """ #???????????? | | ????????????????????#!! """ +???????????? | | ????????????????????#!!* # """ #???????????? | | ????????????????????#!!%=% #???????????? | +----------------------------------------------------+ Best States ------------- Heat Dissipation 25 Energy Generation 10 Energy Capacity 250 Matter Stores 162 Matter Capacity 300 Sight Range 16 Terrain Scan Density 10 Weapon Shielding 33 Evasion (%) 40 Recoil Reduction 2 Item Schematics ----------------- None Robot Schematics ------------------ None Fabricated ------------ Nothing Alien Tech Used ----------------- None Achievements -------------- None Challenges ------------ None Game ------ Seed CorruptionProcessingPlating Manual? 0 Play Time 00:07:02 Cumulative 7.4 hours Start 2024.04.06 @ 18:36:06 End 2024.04.06 @ 18:44:54 Sessions 1 Manual Loads 0 Difficulty Rogue Special Mode None Game No. 14 Rogue 14 Adventurer 0 Explorer 0 Win Type - Total 0 Types 0/0/0/0/0/0/0/0/0 Lore% 14 Gallery% 11 Achievement% 13 Wizard Run 0 Options --------- Layout 1 ASCII 0 Keyboard 0 Movement Numpad Keybinds 0 Fullscreen 1 Font 24/Smallcaps Map View 50x35 Zoom Use 0% Tactical HUD 1 Map Filters NONE Filters NONE Steam 1 RUN: 502aa361-7572-41c5-85b1-7669e87eb544